bitfinex-derivatives/quotes_SOLF0:USTF0_20250117
["timestamp","ask_amount","ask_price","bid_price","bid_amount"]
[1737127373968,17.43631464,218.67,218.5,6.42041974]
[1737127374171,17.43631464,218.67,218.5,7.26078794]
[1737127374474,17.43631464,218.67,218.51,0.8403682]
[1737127374670,4.5725,218.65,218.58,4.5736]
[1737127374870,17.43631464,218.67,218.58,4.5736]
[1737127375074,17.43631464,218.67,218.5,6.42041974]
[1737127375266,4.5723,218.65,218.59,4.5736]
[1737127375575,17.43631464,218.67,218.59,4.5736]
[1737127375767,17.43631464,218.67,218.5,6.42041974]
[1737127375978,17.43631464,218.63,218.5,0.84041974]
[1737127376166,17.43631464,218.68,218.5,0.84041974]
[1737127376372,4.5721,218.67,218.55,4.5743]
[1737127376565,17.43631464,218.68,218.5,0.84041974]
[1737127376866,17.43631464,218.68,218.51,0.84045659]
[1737127377074,4.5721,218.66,218.51,0.84045659]
[1737127377375,17.43631464,218.68,218.52,17.43631464]
[1737127377576,17.43631464,218.72,218.68,4.5716]
[1737127377780,17.43631464,218.72,218.58,5.6]
[1737127377974,1.5563,218.73,218.58,5.6]
[1737127378275,17.43631464,218.8,218.6,17.43631464]
[1737127378472,17.43631464,218.8,218.61,1.5697]
[1737127378676,17.43631464,218.8,218.62,0.84004961]
[1737127378878,22.00561464,218.8,218.62,0.84004961]
[1737127379071,22.00561464,218.8,218.61,1.5697]
[1737127379271,22.00561464,218.8,218.62,0.83999883]
[1737127379474,17.43631464,218.8,218.64,17.43631464]
[1737127379680,17.43631464,218.84,218.64,17.43631464]
[1737127379978,17.43631464,218.84,218.65,0.83989704]
[1737127380174,17.43631464,218.79,218.65,0.83989704]
[1737127380379,17.43631464,218.79,218.61,1.5697]
[1737127380576,17.43631464,218.83,218.64,17.43631464]
[1737127380773,17.43631464,218.87,218.68,17.43631464]
[1737127380979,1.54,218.88,218.72,17.43631464]
[1737127381374,1.54,218.88,218.73,2.3758132]
[1737127381677,6.1076,218.88,218.77,4.5697]
[1737127381873,17.43631464,218.87,218.73,1.5362]
[1737127382679,4.5688,218.82,218.74,4.5703]
[1737127382877,4.5688,218.82,218.69,8.7505]
[1737127383072,17.43631464,218.87,218.69,8.7505]
[1737127383375,4.5682,218.85,218.7,1.5277]
[1737127383780,4.5679,218.87,218.7,18.96401464]
[1737127383979,1.54,218.88,218.7,18.96401464]
[1737127384182,17.43631464,218.86,218.7,18.96401464]
[1737127384376,17.43631464,218.86,218.74,4.5703]
[1737127384780,17.43631464,218.82,218.74,4.5703]
[1737127385082,17.43631464,218.82,218.7,7.1477]
[1737127385276,1.54,218.88,218.7,7.1477]
[1737127385277,17.43631464,218.86,218.7,7.1477]
[1737127385678,17.43631464,218.82,218.7,7.1477]
[1737127386380,17.43631464,218.78,218.69,1.5643]
[1737127386586,17.43631464,218.74,218.63,1.4829]
[1737127386883,17.43631464,218.7,218.58,7.0733]
[1737127388084,17.43631464,218.74,218.58,7.0733]
[1737127388480,17.43631464,218.7,218.58,1.4533]
[1737127388682,17.43631464,218.7,218.56,1.4801]
[1737127388885,4.5717,218.68,218.62,4.5729]
[1737127389088,17.43631464,218.7,218.62,4.5729]
[1737127389391,17.43631464,218.75,218.57,17.43631464]
[1737127389683,17.43631464,218.75,218.69,4.5714]
[1737127390586,4.5707,218.73,218.68,4.5716]
[1737127390788,17.43631464,218.75,218.57,17.43631464]
[1737127391184,17.43631464,218.71,218.57,5.62]
[1737127391384,17.43631464,218.71,218.56,1.4801]
[1737127391585,4.5719,218.67,218.62,4.5729]
[1737127391791,17.43631464,218.71,218.56,7.1001]
[1737127392088,4.5706,218.73,218.68,4.5717]
[1737127392490,17.43631464,218.75,218.68,4.5717]
[1737127392683,17.43631464,218.75,218.66,4.572]
[1737127393086,17.43631464,218.71,218.56,7.1001]
[1737127393786,4.5716,218.69,218.56,7.1001]
[1737127393988,17.43631464,218.71,218.56,7.1001]
[1737127394395,4.5715,218.69,218.56,7.1001]
[1737127395190,4.5715,218.69,218.64,4.5724]
[1737127395388,22.00751464,218.71,218.56,7.1001]
[1737127395594,17.43631464,218.75,218.56,24.53641464]
[1737127396001,1.4542,218.77,218.6,17.43631464]
[1737127396194,17.43631464,218.79,218.64,17.43631464]
[1737127396500,17.43631464,218.75,218.56,24.53641464]
[1737127396795,17.43631464,218.75,218.66,4.5721]
[1737127396997,4.5715,218.7,218.57,2.9333]
[1737127397297,4.5715,218.7,218.6,4.5732]
[1737127397503,17.43631464,218.71,218.58,5.6]
[1737127398400,4.5715,218.69,218.63,4.5725]
[1737127398599,17.43631464,218.71,218.58,5.6]
[1737127398998,17.43631464,218.71,218.57,2.9333]
[1737127399193,4.5723,218.66,218.57,2.9333]
[1737127399795,4.5725,218.64,218.56,1.4801]
[1737127399995,17.43631464,218.67,218.53,5.58]
[1737127400397,4.5723,218.65,218.53,5.58]
[1737127400799,17.43631464,218.67,218.53,5.58]
[1737127401103,22.00821464,218.67,218.62,4.5729]
[1737127401405,17.43631464,218.71,218.53,23.01631464]
[1737127401602,3.0295,218.74,218.57,17.43631464]
[1737127401794,1.5671,218.74,218.57,17.43631464]
[1737127402001,17.43631464,218.75,218.57,17.43631464]
[1737127402195,17.43631464,218.79,218.61,17.43631464]
[1737127402399,18.90261464,218.83,218.65,17.43631464]
[1737127402598,4.5689,218.82,218.77,4.5698]
[1737127402900,5.58,218.92,218.66,5.58]
[1737127402901,17.43631464,218.87,218.69,17.43631464]
[1737127403098,18.87401464,218.91,218.84,4.5683]
[1737127403297,185.1970515,218.94,218.8,5.58]
[1737127403497,185.1970515,218.94,218.81,21.89231464]
[1737127403896,6.0435,218.97,218.81,21.89231464]
[1737127404197,17.43631464,218.84,218.59,13.71]
[1737127404400,17.43631464,218.84,218.71,1.5008]
[1737127404597,17.43631464,218.88,218.8,4.5691]
[1737127404802,17.43631464,218.88,218.72,1.5026]
[1737127405503,4.5678,218.87,218.78,4.5696]
[1737127405906,5.64,218.96,218.66,1.4637]
[1737127405907,17.43631464,218.84,218.66,1.4637]
[1737127406104,17.43631464,218.84,218.67,18.92901464]
[1737127406407,7.5254,218.86,218.76,4.5699]
[1737127406612,2.9573,218.86,218.67,18.92901464]
[1737127406909,17.43631464,218.84,218.67,1.4927]
[1737127407209,17.43631464,218.84,218.72,4.5707]
[1737127407506,17.43631464,218.84,218.67,1.4927]
[1737127407706,17.43631464,218.84,218.67,7.1927]
[1737127407903,17.43631464,218.84,218.67,24.62901464]
[1737127408108,17.43631464,218.88,218.82,4.5687]
[1737127408809,17.43631464,218.88,218.67,24.62901464]
[1737127409011,17.43631464,218.84,218.67,24.62901464]
[1737127409309,1.4275,218.87,218.67,24.62901464]
[1737127409310,1.4275,218.87,218.71,17.43631464]
[1737127409904,1.4275,218.87,218.82,4.5688]
[1737127410300,17.43631464,218.88,218.82,4.5686]
[1737127410509,17.43631464,218.88,218.71,17.43631464]
[1737127411410,17.43631464,218.88,218.8,4.569]
[1737127411607,17.43631464,218.88,218.71,17.43631464]
[1737127411910,17.43631464,218.88,218.74,5.7]
[1737127412114,4.5681,218.85,218.8,4.5692]
[1737127412410,17.43631464,218.92,218.74,5.7]
[1737127412710,4.5679,218.86,218.8,4.569]
[1737127413207,17.43631464,218.88,218.72,5.7]
[1737127413601,4.5682,218.85,218.79,4.5694]
[1737127413806,4.5682,218.85,218.72,5.72]
[1737127414104,17.43631464,218.84,218.72,5.72]
[1737127414710,22.00471464,218.84,218.72,5.72]
[1737127415410,17.43631464,218.8,218.63,5.7]
[1737127415612,17.43631464,218.8,218.68,1.43]
[1737127416612,17.43631464,218.84,218.68,1.43]
[1737127417412,17.43631464,218.84,218.73,4.5705]
[1737127417611,1.5071,218.83,218.68,7.13]
[1737127418412,1.5071,218.83,218.68,7.11]
[1737127418611,17.43631464,218.8,218.68,1.43]
[1737127419215,4.5703,218.75,218.71,4.5711]
[1737127419416,4.5703,218.75,218.68,1.43]
[1737127420114,4.5703,218.75,218.71,4.571]
[1737127420313,17.43631464,218.8,218.68,1.43]
[1737127421419,17.43631464,218.84,218.68,1.43]
[1737127421819,4.569,218.81,218.72,4.5707]
[1737127422017,4.569,218.81,218.68,1.43]
[1737127422314,4.5696,218.78,218.73,4.5706]
[1737127423619,4.5696,218.78,218.68,1.43]
[1737127423811,4.5696,218.78,218.74,4.5704]
[1737127424122,17.43631464,218.88,218.68,18.86631464]
[1737127424413,17.43631464,218.88,218.72,17.43631464]
[1737127424618,4.5677,218.88,218.72,17.43631464]
[1737127425021,2.9679,218.97,218.76,17.43631464]
[1737127425317,22.43656212,219.02,218.8,17.43631464]
[1737127425517,22.43656212,219.02,218.84,17.43631464]
[1737127426121,22.43656212,219.02,218.81,1.5717]
[1737127426624,4.5665,218.93,218.81,1.5717]
[1737127427021,4.5665,218.93,218.84,4.5682]
[1737127427222,4.5669,218.91,218.81,1.5717]
[1737127427424,17.43631464,218.94,218.81,1.5717]
[1737127427823,17.43631464,218.9,218.81,1.5717]
[1737127428023,17.43631464,218.9,218.77,8.7318]
[1737127428220,4.5675,218.89,218.77,8.7318]
[1737127428424,17.43631464,218.9,218.77,8.7318]
[1737127428720,17.43631464,218.9,218.77,6.1337]
[1737127428926,4.5686,218.83,218.77,1.5641]
[1737127429424,4.5686,218.83,218.73,7.1451]
[1737127429724,17.43631464,218.9,218.73,7.1451]
[1737127430125,4.5675,218.89,218.73,7.1451]
[1737127430326,17.43631464,218.9,218.73,7.1451]
[1737127430521,1.4771,218.93,218.76,17.43631464]
[1737127430723,1.4607,219.0,218.8,17.43631464]
[1737127430925,17.43631464,218.97,218.81,1.5147]
[1737127431923,4.5667,218.92,218.87,4.5677]
[1737127432317,17.43631464,218.93,218.81,1.5147]
[1737127432523,4.5675,218.88,218.81,1.5147]
[1737127432725,17.43631464,218.93,218.81,1.5147]
[1737127433030,17.43631464,218.97,218.81,1.5147]
[1737127434023,17.43631464,218.97,218.9,4.567]
[1737127435127,17.43631464,218.97,218.85,5.6]
[1737127435723,18.93171464,219.01,218.92,4.5666]
[1737127436024,4.5656,218.98,218.92,4.5666]
[1737127436324,17.43631464,219.01,218.87,1.5643]
[1737127436824,68.86891259,219.05,218.87,1.5643]
[1737127437024,17.43631464,219.05,218.87,1.5643]
[1737127437419,4.5648,219.01,218.95,4.5661]
[1737127437929,4.5648,219.01,218.87,1.5643]
[1737127438318,4.565,219.0,218.87,1.5643]
[1737127438519,17.43631464,219.01,218.87,1.5643]
[1737127439329,17.43631464,219.01,218.91,4.5667]
[1737127440027,17.43631464,219.01,218.87,1.5643]
[1737127440226,17.43631464,219.01,218.9,4.567]
[1737127440424,4.5658,218.97,218.87,1.5643]
[1737127440622,17.43631464,219.01,218.91,4.5668]
[1737127440819,17.43631464,219.01,218.87,1.5643]
[1737127441125,17.43631464,219.01,218.86,1.4672]
[1737127441126,17.43631464,218.97,218.86,1.4672]
[1737127441530,17.43631464,219.01,218.86,1.4672]
[1737127441823,17.43631464,219.01,218.91,4.5669]
[1737127442025,4.5665,218.93,218.86,1.4672]
[1737127442230,17.43631464,219.01,218.87,5.58]
[1737127443223,17.43631464,218.94,218.87,5.58]
[1737127443525,17.43631464,218.98,218.87,5.58]
[1737127444029,4.5667,218.92,218.88,4.5675]
[1737127444330,17.43631464,218.94,218.8,1.4714]
[1737127444530,17.43631464,218.9,218.8,1.4714]
[1737127444829,17.43631464,218.94,218.8,1.4714]
[1737127445027,17.43631464,218.9,218.8,1.4714]
[1737127445724,4.5681,218.86,218.8,1.4714]
[1737127446428,4.5682,218.85,218.82,4.5687]
[1737127446627,17.43631464,218.9,218.82,4.5687]
[1737127446929,17.43631464,218.9,218.76,1.4882]
[1737127447533,4.5692,218.81,218.76,6.058]
[1737127447925,4.5687,218.83,218.75,4.5702]
[1737127448120,17.43631464,218.86,218.75,4.5702]
[1737127448326,17.43631464,218.86,218.74,7.089]
[1737127448727,4.5692,218.81,218.76,4.5698]
[1737127449124,17.43631464,218.86,218.74,1.529]
[1737127449323,17.43631464,218.82,218.69,8.4597]
[1737127449524,17.43631464,218.78,218.69,8.4597]
[1737127449728,17.43631464,218.82,218.69,8.4597]
[1737127450425,4.5694,218.79,218.75,4.5702]
[1737127450631,17.43631464,218.82,218.69,8.4597]
[1737127451029,4.5702,218.75,218.7,4.5712]
[1737127451229,17.43631464,218.78,218.69,5.54]
[1737127451527,17.43631464,218.74,218.62,2.9108]
[1737127451732,17.43631464,218.7,218.6,0.91491308]
[1737127452031,4.5717,218.69,218.61,4.573]
[1737127452233,17.43631464,218.7,218.58,91.06]
[1737127452533,4.5724,218.65,218.6,4.5733]
[1737127452735,17.43631464,218.7,218.58,91.06]
[1737127453327,17.43631464,218.7,218.6,4.5733]
[1737127453529,17.43631464,218.66,218.6,4.5733]
[1737127453733,17.43631464,218.66,218.55,5.54]
[1737127454430,1.474,218.72,218.55,5.54]
[1737127454431,17.43631464,218.7,218.55,5.54]
[1737127455431,4.5724,218.65,218.55,5.54]
[1737127455834,17.43631464,218.7,218.55,5.54]
[1737127456227,4.572,218.67,218.55,5.54]
[1737127456432,17.43631464,218.7,218.55,5.54]
[1737127456932,4.5721,218.66,218.61,4.5731]
[1737127457434,4.5721,218.66,218.55,5.54]
[1737127458331,4.5721,218.66,218.6,4.5732]
[1737127458833,17.43631464,218.66,218.54,4.5507]
[1737127459135,17.43631464,218.62,218.56,4.5742]
[1737127459733,4.5733,218.61,218.56,4.5742]
[1737127460832,4.5733,218.61,218.52,5.52]
[1737127460833,17.43631464,218.7,218.52,22.95631464]
[1737127461834,4.5723,218.66,218.52,22.95631464]
[1737127462035,4.5723,218.66,218.52,5.52]
[1737127462727,17.43631464,218.74,218.55,17.43631464]
[1737127462927,17.43631464,218.74,218.59,17.43631464]
[1737127463131,17.43631464,218.78,218.6,1.5341]
[1737127463331,4.57,218.76,218.6,1.5341]
[1737127463529,17.43631464,218.78,218.6,1.5341]
[1737127464132,4.5705,218.74,218.68,4.5715]
[1737127464532,17.43631464,218.78,218.63,5.5]
[1737127464740,4.5709,218.72,218.63,5.5]
[1737127465035,17.43631464,218.7,218.6,5.5]
[1737127465242,4.5719,218.67,218.61,4.5731]
[1737127465641,17.43631464,218.7,218.61,4.5731]
[1737127465842,17.43631464,218.7,218.6,5.5]
[1737127466334,17.43631464,218.66,218.53,5.5]
[1737127467038,4.5725,218.64,218.59,4.5735]
[1737127467239,17.43631464,218.66,218.53,5.5]
[1737127467439,4.573,218.62,218.57,4.5738]
[1737127467831,4.573,218.62,218.53,5.5]
[1737127468438,4.5728,218.63,218.58,4.5737]
[1737127468843,17.43631464,218.66,218.51,5.48]
[1737127469143,4.5732,218.61,218.56,4.574]
[1737127469444,4.5732,218.61,218.57,4.5739]
[1737127469839,22.00931464,218.62,218.57,4.5739]
[1737127470141,22.00931464,218.62,218.58,4.5737]
[1737127470337,17.43631464,218.62,218.51,5.48]
[1737127470734,17.43631464,218.58,218.41,17.43631464]
[1737127470938,4.5743,218.56,218.44,6.9395]
[1737127471342,17.43631464,218.58,218.54,4.5744]
[1737127471543,17.43631464,218.58,218.45,5.48]
[1737127472044,17.43631464,218.58,218.55,4.5742]
[1737127472947,18.96271464,218.62,218.45,22.91631464]
[1737127473244,18.96271464,218.62,218.56,4.5742]
[1737127473644,4.5734,218.6,218.45,22.91631464]
[1737127473945,17.43631464,218.62,218.58,4.5738]
[1737127474147,1.5756,218.67,218.45,22.91631464]
[1737127474338,1.5756,218.67,218.57,4.5738]
[1737127474537,17.43631464,218.62,218.45,22.91631464]
[1737127474742,4.5735,218.6,218.45,22.91631464]
[1737127474939,17.43631464,218.62,218.56,4.574]
[1737127475447,4.5734,218.6,218.56,4.574]
[1737127476749,4.5734,218.6,218.57,4.574]
[1737127476947,4.5732,218.61,218.57,4.574]
[1737127477644,4.5734,218.6,218.57,4.574]
[1737127478045,17.43631464,218.58,218.49,5.46]
[1737127478242,22.01011464,218.58,218.49,5.46]
[1737127478446,22.01011464,218.58,218.47,5.46]
[1737127479347,4.5733,218.61,218.47,5.46]
[1737127479659,17.43631464,218.62,218.47,5.46]
[1737127479952,17.43631464,218.66,218.61,4.5731]
[1737127480154,17.43631464,218.66,218.49,17.43631464]
[1737127480354,17.43631464,218.66,218.54,4.5746]
[1737127480554,22.00941464,218.62,218.47,5.46]
[1737127480856,17.43631464,218.62,218.47,5.46]
[1737127481252,4.5735,218.6,218.47,5.46]
[1737127481453,17.43631464,218.62,218.55,4.5743]
[1737127481647,17.43631464,218.62,218.47,5.46]
[1737127481844,1.5756,218.67,218.47,5.46]
[1737127482650,1.5756,218.67,218.49,17.43631464]
[1737127482852,17.43631464,218.68,218.49,17.43631464]
[1737127483259,17.43631464,218.68,218.5,9.1509]
[1737127484451,4.5721,218.66,218.55,4.5743]
[1737127484658,4.5721,218.66,218.5,9.1509]
[1737127484659,17.43631464,218.68,218.5,9.1509]
[1737127484954,4.5725,218.65,218.6,4.5732]
[1737127485154,17.43631464,218.68,218.6,4.5732]
[1737127485657,4.5728,218.63,218.6,4.5732]
[1737127485858,17.43631464,218.68,218.59,4.5736]
[1737127486057,17.43631464,218.63,218.59,4.5736]
[1737127486656,17.43631464,218.63,218.55,5.42]
[1737127487356,17.43631464,218.63,218.45,17.43631464]
[1737127487657,17.43631464,218.59,218.46,5.42]
[1737127487861,17.43631464,218.59,218.56,4.574]
[1737127488468,17.43631464,218.59,218.46,5.42]
[1737127488469,22.00991464,218.59,218.55,4.5742]
[1737127489272,17.43631464,218.59,218.43,94.6938]
[1737127489466,17.43631464,218.59,218.45,5.42]
[1737127490771,17.43631464,218.55,218.44,2.9948]
[1737127490966,17.43631464,218.55,218.35,21.28127113]
[1737127490967,17.43631464,218.49,218.35,3.84495649]
[1737127491168,17.43631464,218.41,218.2,17.43631464]
[1737127491470,17.43631464,218.41,218.21,6.28146003]
[1737127491671,17.43631464,218.41,218.22,0.8414199]
[1737127492071,4.578,218.38,218.3,4.5795]
[1737127492877,17.43631464,218.41,218.31,4.5794]
[1737127493168,17.43631464,218.37,218.28,5.42]
[1737127493371,17.43631464,218.33,218.23,5.42]
[1737127493670,17.43631464,218.37,218.23,5.42]
[1737127493874,17.43631464,218.41,218.23,5.42]
[1737127494175,17.43631464,218.37,218.23,5.42]
[1737127494572,17.43631464,218.37,218.27,4.5803]
[1737127494769,17.43631464,218.37,218.23,5.42]
[1737127496979,17.43631464,218.37,218.24,5.4]
[1737127497475,17.43631464,218.37,218.27,4.5801]
[1737127497776,17.43631464,218.37,218.24,5.4]
[1737127498671,17.43631464,218.41,218.24,5.4]
[1737127498872,17.43631464,218.45,218.24,36.54631464]
[1737127499072,202.63336614,218.49,218.28,17.43631464]
[1737127499271,202.63336614,218.49,218.32,17.43631464]
[1737127499468,17.43631464,218.49,218.45,4.5764]
[1737127499869,17.43631464,218.49,218.42,5.4]
[1737127500077,17.43631464,218.49,218.45,4.5765]
[1737127500271,22.44783911,218.53,218.42,5.4]
[1737127501077,2.9842,218.54,218.42,5.4]
[1737127501278,20.42051464,218.54,218.42,5.4]
[1737127501578,4.5751,218.52,218.42,5.4]
[1737127501783,20.42051464,218.54,218.42,5.4]
[1737127501975,17.43631464,218.5,218.42,5.4]
[1737127502281,17.43631464,218.46,218.33,5.4]
[1737127502579,17.43631464,218.41,218.33,5.4]
[1737127502975,17.43631464,218.46,218.34,5.4]
[1737127503174,17.43631464,218.53,218.35,5.4]
[1737127503577,4.5762,218.49,218.35,5.4]
[1737127504084,4.5765,218.48,218.35,5.4]
[1737127504580,17.43631464,218.53,218.35,5.4]
[1737127504875,4.5762,218.49,218.35,5.4]
[1737127505075,17.43631464,218.53,218.43,4.5772]
[1737127505278,17.43631464,218.53,218.36,5.4]
[1737127505473,17.43631464,218.49,218.36,5.4]
[1737127505680,17.43631464,218.49,218.4,4.5778]
[1737127506578,17.43631464,218.53,218.36,5.4]
[1737127506772,20.42051464,218.54,218.36,5.4]
[1737127507183,4.5761,218.49,218.41,4.5777]
[1737127507383,20.42051464,218.54,218.36,5.4]
[1737127507683,4.5764,218.48,218.43,4.5773]
[1737127508581,4.5757,218.51,218.47,4.5765]
[1737127508884,17.43631464,218.58,218.47,5.4]
[1737127509183,18.89721464,218.62,218.54,4.5751]
[1737127509887,18.89721464,218.62,218.52,4.5753]
[1737127510084,18.89721464,218.62,218.47,5.4]
[1737127510678,17.43631464,218.68,218.5,17.43631464]
[1737127511384,4.5732,218.63,218.5,17.43631464]
[1737127511582,17.43631464,218.68,218.51,5.4]
[1737127511791,4.5732,218.64,218.51,5.4]
[1737127512187,17.43631464,218.68,218.51,5.4]
[1737127512588,4.5726,218.67,218.51,5.4]
[1737127512788,17.43631464,218.68,218.62,4.5733]
[1737127512984,4.5717,218.71,218.61,5.4]
[1737127513591,2.8884,218.72,218.61,5.4]
[1737127513785,190.5970515,218.84,218.61,5.4]
[1737127514091,17.43631464,218.75,218.61,5.4]
[1737127514289,4.5718,218.7,218.64,4.5729]
[1737127514792,4.5718,218.7,218.61,5.4]
[1737127514989,4.5721,218.69,218.61,5.4]
[1737127515187,17.43631464,218.75,218.61,5.4]
[1737127515585,17.43631464,218.67,218.54,5.4]
[1737127515788,17.43631464,218.67,218.55,1.537]
[1737127515993,17.43631464,218.67,218.56,5.4]
[1737127516193,17.43631464,218.67,218.56,6.9055]
[1737127517295,4.573,218.65,218.59,4.574]
[1737127517491,17.43631464,218.67,218.55,1.537]
[1737127517692,4.5735,218.62,218.57,4.5744]
[1737127518593,17.43631464,218.62,218.55,5.4]
[1737127518893,17.43631464,218.62,218.5,5.4]
[1737127520589,4.5744,218.58,218.53,4.5751]
[1737127520788,17.43631464,218.62,218.5,5.4]
[1737127522395,17.43631464,218.62,218.51,4.5755]
[1737127522694,17.43631464,218.62,218.48,3.0425]
[1737127522891,17.43631464,218.62,218.49,5.4]
[1737127523296,4.5747,218.56,218.51,4.5757]
[1737127523498,17.43631464,218.62,218.49,5.4]
[1737127523792,17.43631464,218.62,218.5,4.5758]
[1737127524198,17.43631464,218.62,218.49,5.4]
[1737127525200,4.5749,218.56,218.51,4.5756]
[1737127525500,17.43631464,218.62,218.49,5.4]
[1737127525803,3.0019,218.66,218.49,5.4]
[1737127526091,17.43631464,218.61,218.49,5.4]
[1737127526292,4.5744,218.58,218.53,4.5752]
[1737127526799,3.0019,218.66,218.49,5.4]
[1737127526998,4.5739,218.6,218.56,4.5746]
[1737127527999,4.5739,218.6,218.52,4.5754]
[1737127528200,3.0019,218.66,218.49,5.4]
[1737127528396,17.43631464,218.6,218.49,5.4]
[1737127528602,4.5751,218.54,218.49,4.576]
[1737127528901,3.0019,218.66,218.44,5.4]
[1737127528902,17.43631464,218.56,218.44,5.4]
[1737127529099,1.4993,218.55,218.44,5.4]
[1737127529901,1.4993,218.55,218.37,1.5228]
[1737127530099,1.4993,218.55,218.38,5.4]
[1737127530100,17.43631464,218.51,218.38,5.4]
[1737127530703,2.9785,218.55,218.36,17.43631464]
[1737127530905,2.9785,218.55,218.35,5.4]
[1737127531099,17.43631464,218.5,218.35,5.4]
[1737127531300,17.43631464,218.5,218.4,4.5779]
[1737127531606,2.9785,218.55,218.27,17.43631464]
[1737127531607,17.43631464,218.45,218.27,17.43631464]
[1737127531800,1.5124,218.44,218.31,5.4]
[1737127532000,2.9916,218.44,218.31,5.4]
[1737127532199,4.5785,218.38,218.33,4.5794]
[1737127532402,17.43631464,218.41,218.25,3.068]
[1737127532702,17.43631464,218.41,218.26,5.4]
[1737127533607,4.5785,218.38,218.33,4.5795]
[1737127535004,17.43631464,218.41,218.25,3.068]
[1737127535205,2.9916,218.44,218.17,5.6]
[1737127535206,17.43631464,218.33,218.17,5.6]
[1737127535410,17.43631464,218.33,218.18,5.6]
[1737127535701,4.5803,218.3,218.18,5.6]
[1737127535902,17.43631464,218.33,218.18,5.6]
[1737127536103,17.43631464,218.37,218.18,23.03631464]
[1737127537606,4.5793,218.34,218.29,4.5803]
[1737127537908,17.43631464,218.37,218.22,17.43631464]
[1737127538109,2.9916,218.44,218.28,4.5804]
[1737127538110,4.5789,218.36,218.28,4.5804]
[1737127538301,4.5789,218.36,218.23,1.5192]
[1737127538707,4.5786,218.38,218.23,1.5192]
[1737127539010,17.43631464,218.41,218.26,17.43631464]
[1737127539306,2.9916,218.44,218.27,2.9868]
[1737127539502,4.5782,218.39,218.28,5.64]
[1737127539707,17.43631464,218.41,218.28,5.64]
[1737127540311,17.43631464,218.37,218.23,1.5192]
[1737127541209,4.5797,218.32,218.27,4.5807]
[1737127542108,4.5797,218.33,218.27,4.5807]
[1737127542309,17.43631464,218.32,218.15,2.9868]
[1737127542510,17.43631464,218.32,218.18,5.6]
[1737127542812,4.5806,218.28,218.18,5.6]
[1737127543012,17.43631464,218.32,218.24,4.5813]
[1737127543810,17.43631464,218.32,218.18,5.6]
[1737127544004,1.5311,218.31,218.18,5.6]
[1737127544506,1.5311,218.31,218.22,4.5818]
[1737127544910,1.5311,218.31,218.18,5.6]
[1737127545114,1.5311,218.31,218.23,4.5816]
[1737127546021,1.5311,218.31,218.21,4.5818]
[1737127546409,17.43631464,218.28,218.21,4.5818]
[1737127546614,4.5814,218.24,218.19,4.5822]
[1737127546809,17.43631464,218.28,218.14,5.58]
[1737127547014,17.43631464,218.28,218.15,5.58]
[1737127547215,4.5812,218.25,218.2,4.5821]
[1737127548020,4.5816,218.23,218.18,4.5824]
[1737127548219,17.43631464,218.28,218.18,4.5824]
[1737127549013,17.43631464,218.28,218.14,5.56]
[1737127549215,4.5813,218.25,218.14,5.56]
[1737127549421,17.43631464,218.28,218.14,5.56]
[1737127549818,1.5311,218.31,218.14,5.56]
[1737127550016,1.5311,218.31,218.21,4.5818]
[1737127550224,1.5311,218.31,218.14,5.56]
[1737127550418,4.5811,218.26,218.14,5.56]
[1737127550721,4.5811,218.26,218.21,4.5819]
[1737127551323,1.5311,218.31,218.21,4.5819]
[1737127553319,1.5311,218.31,218.16,5.54]
[1737127553320,4.5812,218.25,218.16,5.54]
[1737127553520,1.5311,218.31,218.16,5.54]
[1737127553723,17.43631464,218.36,218.18,17.43631464]
[1737127554230,4.5802,218.3,218.18,17.43631464]
[1737127554423,4.5802,218.3,218.16,5.54]
[1737127554727,17.43631464,218.36,218.25,4.5811]
[1737127554932,17.43631464,218.31,218.12,7.09]